Cogmind - Beta 17 *** ADVENTURER MODE // 2026.07.25 @ 10:28:13 Player: Draug Result: Destroyed by HH-JIP(R) with Subdweller Laser Performance ------------- Evolutions (0) 0 Regions Visited (2) 400 Robots Destroyed (16) 80 Value Destroyed (339) 339 Prototype IDs (0) 0 Alien Tech Used (0) 0 Bonus (0) 0 TOTAL SCORE: 819 Bonus ------- None Cogmind --------- Core Integrity 0/250 Matter 295/300 Energy 64/100 System Corruption 1% Temperature Cool (6) Movement Core (400) Ox7 Location -10/Subcaves Parts ------- > --- POWER (1) -------- (None) > --- PROPULSION (2) --- (None) > --- UTILITY (2) ------ Large Storage Unit ECM Suite > --- WEAPON (2) ------- (None) > --- INVENTORY (15) --- Light Ion Engine Hover Unit Improved Heat Sink Medium Battery (150) Large Matter Pod (150) Subdweller Optics Signal Interpreter Improved Terrain Scanner Core Shielding Cobbler Unit Peak State ------------ > --- POWER ------------ Subdweller Power Source > --- PROPULSION ------- Subdweller Monowheel Subdweller Monowheel > --- UTILITY ---------- Large Storage Unit ECM Suite > --- WEAPON ----------- Medium Laser Particle Gun > --- INVENTORY -------- Light Ion Engine Aluminum Leg Aluminum Leg Hover Unit Improved Heat Sink Medium Battery Large Matter Pod Subdweller Optics Signal Interpreter Improved Terrain Scanner Core Shielding [Rating: 12] Favorites ----------- Power Light Ion Engine Engine Light Ion Engine Propulsion Aluminum Leg Leg Aluminum Leg Wheel Subdweller Monowheel Utility ECM Suite Device ECM Suite Storage Large Storage Unit Weapon Medium Laser Energy Gun Medium Laser Ballistic Gun Battle Rifle Build | -11 -10 -10 ------- Run | Yrd Mat Sub Slots Evolved . | . . . Power . | . . . Propulsion . | . . . Utility . | . . . Weapon . | . . . Parts Attached 19 | 8 5 6 Power 3 | 1 1 1 Engine 3 | 1 1 1 Core . | . . . Reactor . | . . . Propulsion 6 | 3 . 3 Treads . | . . . Leg 3 | 2 . 1 Wheel 3 | 1 . 2 Hover . | . . . Flight . | . . . Utility 5 | 2 3 . Device 2 | 1 1 . Storage 3 | 1 2 . Processor . | . . . Hackware . | . . . Protection . | . . . Artifact . | . . . Weapon 5 | 2 1 2 Energy Gun 4 | 2 1 1 Energy Cannon . | . . . Ballistic Gun 1 | . . 1 Ballistic Cannon . | . . . Launcher . | . . . Special Weapon . | . . . Impact Weapon . | . . . Slashing Weapon . | . . . Piercing Weapon . | . . . Special Melee Weapon . | . . . Unidentified Prototypes . | . . . Parts Lost 5 | . . 5 Power 1 | . . 1 Propulsion 2 | . . 2 Utility . | . . . Weapon 2 | . . 2 Highest Loss Streak 5 | . . 5 To Critical Strikes . | . . . Average Backups 7 | 6 7 10 Power . | . 1 1 Propulsion 2 | 3 1 1 Utility 3 | . 3 7 Weapon 1 | 1 1 . Tool/Special . | . . . Unused Backups 18 | 1 9 8 Power . | . . . Propulsion 6 | . 5 1 Utility 8 | . 1 7 Weapon 4 | 1 3 . Tool/Special . | . . . Average Slot Usage (%) 98 | . 99 97 Engine 13 | . 13 13 Leg 26 | . 28 24 Wheel 1 | . . 2 Device 14 | . 14 14 Storage 14 | . 14 14 Energy Gun 24 | . 27 20 Ballistic Gun 2 | . . 5 Peak Build Rating 12 | 9 10 12 Average Rating 8 | 7 8 9 On Entrance 6 | . 9 9 Avg Prop Armor Cover (%) . | . . . Naked Turns . | . . . Heaviest Build 32 | 13 30 32 Greatest Support 40 | 20 20 40 Greatest Overweight (x) 2 | 2 1 1 Average Overweight (x) . | . . . Largest Inventory Capacity 15 | 8 15 15 Average Capacity 11 | 7 12 15 Most Carried 12 | 8 10 12 Average Carried 8 | 6 7 10 Final Capacity 15 | 8 15 15 Final Carried 11 | 7 8 11 Class Distribution -------------------- 87% | Mutant 12% | Scavenger-Mutant Dominant Class ---------------- Mutant | -10/Materials Mutant | -10/Subcaves Resources | -11 -10 -10 ----------- Run | Yrd Mat Sub Matter Collected 623 | 227 146 250 Remotely . | . . . Salvage Created 405 | 35 225 145 Parts 24 | 7 14 3 Haulers Intercepted . | . . . Recyclers Shooed . | . . . Parts Field Recycled . | . . . Retrieved Matter . | . . . Parts Self-Destructed 9 | . . 9 Prevented . | . . . Parts Restored . | . . . Kills | -11 -10 -10 ------- Run | Yrd Mat Sub Combat Hostiles Destroyed 11 | . 7 4 Guns 11 | . 7 4 Classes Destroyed 6 | 1 3 2 Tunneler 2 | 2 . . Turret 2 | . . 2 Watcher 1 | . 1 . Swarmer 6 | . 3 3 Grunt 4 | . 4 . Subdweller 1 | . . 1 Best Kill Streak 5 | 1 3 5 Combat Bots Only 3 | . 3 2 Max Kills in Single Turn 2 | 1 1 2 Gunslinging 1 | . . 1 Exploded . | . . . Melee . | . . . Uniques/NPCs Destroyed . | . . . Combat | -11 -10 -10 -------- Run | Yrd Mat Sub Hostile Shots Fired 106 | . 29 77 Missed 29 | . 11 18 Hits 77 | . 18 59 Projectile 77 | . 18 59 AOE 1 | . . 1 Critical Strikes 3 | . . 3 Damage Taken 879 | . 179 700 Core 250 | . 45 205 Absorbed by Shields . | . . . Ignored by Resistances 244 | . 58 186 Core Remaining (%) 100 | 100 . . Volleys Fired 59 | 4 18 37 Largest 2 | 2 2 2 Hottest 115 | 90 115 115 Shots Fired 98 | 5 34 59 Gun 98 | 5 34 59 Cannon . | . . . Launcher . | . . . Special . | . . . Kinetic 16 | . . 16 Thermal 72 | 1 28 43 Explosive . | . . . Electromagnetic 10 | 4 6 . Robot Hit Streak 33 | 4 18 33 Robot Miss Streak 3 | 1 2 3 Penetration Max . | . . . Secondary Targets 2 | . 1 1 Max Gunslinging Chain 1 | . 1 1 Shots Hit Robots 75 | 4 26 45 Core Hits 26 | 2 13 11 Critical Kills . | . . . Critical Parts Destroyed . | . . . Critical Strikes 6 | 1 2 3 Burn 4 | . 1 3 Corrupt 2 | 1 1 . Melee Attacks . | . . . Impact . | . . . Slashing . | . . . Piercing . | . . . Sneak Attacks . | . . . Combat Hostiles . | . . . Follow-up Attacks . | . . . Damage Inflicted 994 | 52 385 557 Guns 961 | 52 352 557 Cannons . | . . . Explosions 33 | . 33 . Melee . | . . . Ramming . | . . . Kinetic 175 | . . 175 Thermal 699 | 12 305 382 Explosive . | . . . Electromagnetic 120 | 40 80 . Impact . | . . . Slashing . | . . . Piercing . | . . . Highest Corruption 1 | . 1 1 Average Corruption 1 | . 1 1 Corruption Purged . | . . . Corruption Blocked . | . . . Effects 13 | . 3 10 Message Errors 4 | . . 4 Matter Fused 2 | . . 2 Heat Flow Errors 2 | . . 2 Data Loss (minor) 3 | . 2 1 Misfires 2 | . 1 1 Overload Shots . | . . . Overflow Damage . | . . . Projectiles . | . . . Explosions . | . . . Melee . | . . . Knockbacks . | . . . Impact . | . . . Kinetic . | . . . Secondary . | . . . Self-Inflicted Damage 40 | . 40 . Shots 1 | . 1 . Rammed . | . . . Targets Rammed . | . . . Kicked . | . . . Crushed . | . . . Highest Temperature 270 | 30 270 251 Average Temperature 84 | 18 88 77 Received Heat Transfer 282 | . 72 210 Effects 2 | . 2 . Interference 2 | . 2 . Siege Activations . | . . . Martial Activations . | . . . Shielding Activations . | . . . Robots Disrupted . | . . . Combat Hostiles . | . . . Robots Corrupted . | . . . Combat Hostiles . | . . . Parts Fried 1 | 1 . . Impact Corruptions . | . . . Robots Melted . | . . . Combat Hostiles . | . . . Parts Melted 3 | . 2 1 Heat Transferred 2136 | 37 864 1235 Parts Sabotaged . | . . . Parts Stolen . | . . . Parts Stripped . | . . . Power Chain Reactions 1 | . 1 . Alert | -11 -10 -10 ------- Run | Yrd Mat Sub Maximum Alert Level . | . . . Low Security (%) 100 | 100 100 . Level 1 . | . . . Level 2 . | . . . Level 3 . | . . . Level 4 . | . . . Level 5 . | . . . High Security . | . . . Max Security . | . . . Peak Influence 70 | 5 70 . Initial . | . . . Average 3 | . 6 . Influence Increases 315 | 10 205 100 Destroy 0b10 Robot/C 240 | . 140 100 Destroy 0b10 Robot/NC 15 | 10 5 . Destroy Leader 42 | . 42 . Successful Hack 11 | . 11 . Destroy Structure 7 | . 7 . Influence Decreases 315 | 10 205 100 Time Decay 315 | 10 205 100 Squads Dispatched 5 | . 5 . Investigation 5 | . 5 . Extermination . | . . . Reinforcement . | . . . Assault . | . . . Garrison . | . . . Intercept . | . . . Searches Triggered . | . . . Construction Impeded . | . . . Haulers Reinforced . | . . . Active Scanning Responses . | . . . Cargo Convoy Interrupts . | . . . Stealth | -11 -10 -10 --------- Run | Yrd Mat Sub Distress Signals 1 | . 1 . Communications Jammed . | . . . Distress Signals . | . . . Times Spotted 30 | . 8 22 Peak Tracking Total 6 | . 3 6 Tactical Retreats 3 | . . 3 ECM-based Alert Blocks 24 | . . 24 Traps | -11 -10 -10 ------- Run | Yrd Mat Sub Traps Triggered 5 | . 4 1 Indirectly . | . . . Trap Hack Attempts . | . . . Triggered . | . . . Disarmed 2 | . 2 . Reprogrammed . | . . . Reused . | . . . Traps Extracted . | . . . Installed . | . . . Triggered . | . . . Machines | -11 -10 -10 ---------- Run | Yrd Mat Sub Machines Disabled 1 | . . 1 Max in Single Turn 1 | . . 1 Machines Repaired . | . . . Machines Dismantled . | . . . Machines Sabotaged . | . . . Overloaded Fab Kills . | . . . Hacking | -11 -10 -10 --------- Run | Yrd Mat Sub Machines Accessed 10 | . 10 . Terminals 8 | . 8 . Fabricators . | . . . Repair Stations . | . . . Recycling Units 2 | . 2 . Scanalyzers . | . . . Garrison Access . | . . . Total Hacks 29 | . 29 . Successful 21 | . 21 . Failed 8 | . 8 . Catastrophic 1 | . 1 . Database Lockouts . | . . . Manual . | . . . Terminals 23 | . 23 . Fabricators . | . . . Repair Stations . | . . . Recycling Units 6 | . 6 . Scanalyzers . | . . . Garrison Access . | . . . Terminal Hacks 15 | . 15 . Record 6 | . 6 . Alert Level 1 | . 1 . Locate Traps 1 | . 1 . Disarm Traps 1 | . 1 . Maintenance Status 2 | . 2 . Patrol Status 1 | . 1 . Registered Prototypes 1 | . 1 . Zone Layout 2 | . 2 . Fabricator Hacks . | . . . Repair Station Hacks . | . . . Recycling Unit Hacks 6 | . 6 . Recycle Component 2 | . 2 . Report Inventory 2 | . 2 . Retrieve Matter 1 | . 1 . Retrieve Components 1 | . 1 . Scanalyzer . | . . . Garrison Access Hacks . | . . . Unauthorized Hacks . | . . . Terminals . | . . . Fabricators . | . . . Repair Stations . | . . . Recycling Units . | . . . Scanalyzers . | . . . Garrison Access . | . . . Data Cores Recovered . | . . . Used . | . . . Hacking Detections 8 | . 8 . Full Trace Events 5 | . 5 . Feedback Events . | . . . Feedback Blocked . | . . . Robot Schematics Acquired . | . . . Robots Built . | . . . Authchips . | . . . Time . | . . . Total Robot Build Rating . | . . . Part Schematics Acquired . | . . . Parts Built . | . . . Authchips . | . . . Time . | . . . Total Part Build Rating . | . . . Part Studies Acquired . | . . . Parts Repaired . | . . . Time . | . . . Parts Recycled 2 | . 2 . Recycled Matter . | . . . Retrieved Matter . | . . . Retrieved Components 9 | . 9 . Parts Scanalyzed . | . . . Part Schematics Acquired . | . . . Parts Damaged . | . . . Bothacking | -11 -10 -10 ------------ Run | Yrd Mat Sub Used RIF Installer . | . . . Robots Hacked . | . . . Non-combat . | . . . Combat . | . . . Robot Hacks Applied . | . . . Relay Couplers Released . | . . . Fabnet Peak Effective % . | . . . Robots Rewired . | . . . Allies Hacked . | . . . Hacks Repelled . | . . . Allies | -11 -10 -10 -------- Run | Yrd Mat Sub Total Allies . | . . . Largest Group . | . . . Highest-Rated Group . | . . . Highest-Rated Ally . | . . . Total Orders . | . . . Ally Attacks . | . . . Total Damage . | . . . Kills . | . . . Allies Corrupted . | . . . Allies Melted . | . . . Intel | -11 -10 -10 ------- Run | Yrd Mat Sub Active Infowar (turns) 3446 | 746 1394 1306 Terrain 922 | 746 176 . ECM 2524 | . 1218 1306 Robot Analysis Total . | . . . Derelict Logs Recovered 1 | . . 1 Drone Launches . | . . . Drone Recoveries . | . . . Exploration | -11 -10 -10 ------------- Run | Yrd Mat Sub Turns Passed 4476 | 1486 1579 1411 Spaces Moved 2031 | 622 759 650 Core 34 | 34 . . Treads . | . . . Legs 1904 | 588 759 557 Wheels 93 | . . 93 Hover . | . . . Flight . | . . . Fastest Speed 50 | 50 120 110 Average Speed 153 | 119 161 178 Slowest Speed 190 | 150 190 190 Overloaded Moves . | . . . Propulsion Burnouts . | . . . Robots Hopped . | . . . Potential Cave-ins . | . . . Cave-ins Triggered . | . . . Exploration Rate (%) 52 | 42 85 31 Regions Visited 2 Branch Regions 1 Pre-discovered Areas . | . . . Known Exits Taken . | . . . Unknown Exits Taken 2 | 1 1 . Scrap Searched . | . . . Spaces Dug . | . . . Terrain Destroyed 7 | . 7 . Melee . | . . . Projectile . | . . . AOE 7 | . 7 . Terrain Rammed . | . . . Walls Destroyed . | . . . Machines Disabled . | . . . Actions | -11 -10 -10 --------- Run | Yrd Mat Sub Total 3298 | 1359 1089 850 Wait 1122 | 709 278 135 Move 2029 | 621 758 650 Hop . | . . . Pick Up 40 | 15 16 9 Fast Attach 2 | . 2 . Attach 20 | 8 4 8 Detach 3 | 1 . 2 Swap 2 | . . 2 Drop 21 | 1 13 7 Fire 59 | 4 18 37 Melee . | . . . Ram . | . . . Kick . | . . . Crush . | . . . Escape Stasis . | . . . Rewire . | . . . Trap . | . . . Miscellaneous . | . . . Route ------- -11/Scrapyard -10/Materials (discovered 4 exits: [*Mat x2] / [*Min] / [*Sub]) -10/Subcaves (discovered 3 exits: [*Mat] / [*Rec] / [Scr]) History --------- Turn | Location | Event 21 | -11/Scrapyard | Discovered new exit (range 15) 1487 | -11/Scrapyard | Entered Materials 1488 | -10/Materials | Build established: Mutant 1488 | -10/Materials | Met a group of wandering Federalists 1653 | -10/Materials | Discovered new exit (range 13) 2075 | -10/Materials | Discovered new exit (range 10) 2693 | -10/Materials | Discovered new exit (range 16) 3002 | -10/Materials | Discovered new exit (range 7) 3066 | -10/Materials | Entered Subcaves 3067 | -10/Subcaves | Continued accompanying wandering Federalists (5) 3071 | -10/Subcaves | Ambushed by Subdwellers from Twisted Machinery 3229 | -10/Subcaves | Discovered new exit (range 15) 3432 | -10/Subcaves | Build established: Scavenger-Mutant 3991 | -10/Subcaves | Build established: Mutant 4226 | -10/Subcaves | Learned Materials stockpile data 4351 | -10/Subcaves | Discovered new exit (range 8) 4395 | -10/Subcaves | Disturbed a concealed Subdweller 4430 | -10/Subcaves | Core integrity fell below 50% 4464 | -10/Subcaves | Core integrity fell below 20% 4477 | -10/Subcaves | Destroyed by HH-JIP(R) with Subdweller Laser Last Messages --------------- 04237_ Subatomizers dissect the Sub. Laser. 04260_ Triggered Piercing Trap. 04260_ Spikes shoot up from the floor. 04260_ Critical hit (Impale). 04276_ Dropped Salvaging Laser. 04290_ 17-K1Z(R) destroyed. 04295_ Acquired 13 matter. 04305_ Subatomizers dissect the Sub. Laser. 04327_ System corrupted: Heat flow error (+188). 04351_ EXIT=FOUND 04395_ HH-JIP(R) angrily emerges from the Twisted Machinery. 04396_ HH-JIP(R): "UDINAU!" 04405_ HH-JIP(R) affixes Scrap Shield Fragment to Scrap Shield. 04408_ Med. Laser destroyed. 04427_ Battle Rifle destroyed. 04431_ Lgt. Ion Engine destroyed. 04439_ OCNJNC8 J= 31I#REF9A6S= 04453_ Aluminum Leg destroyed. Map ----- +----------------------------------------------------+ | ????????????????????????### ## " ]%! ## | | ??????????????????????????##### " ### | | ?????????????????????????## " " #?## | | ????????????????????????##" [# """ #### | | ????????????????????????#$ # ## | | ????????????????????????#"" # "### | | ????????????????????????## $### $###?# % # | | ?????????????????????????####?####?# ## ##### | | ???????????????????????????????????## ## ##???? | | ????????????????????????????????????###### #????? | | ??????????????????????????????????#####??# ##????? | | ?????????????????????????????????? ##?# #?????? | | ?????????????????????????????????? ### ##????? | | ?????????????????????????????????? ## #????? | | ?????????????????????????????????? ## ##????? | | ????????????????????????????????## ?## #?????? | | ???????????????????????????????## ???# #?????? | | ???????????????????????????????# #????# ##????? | | ??????????????????????????????## #????# #????? | | ??????????????????????????????# ##??## ##????? | | ????????????????????????????### #??# #????? | | ???????????????????????????## #??## ##????? | | ????????????????????????#### #### #?????? | | ????????????????????????#< ##" ## # ##????? | | ????????????????????????#R# ## #????? | | ????????????????????????#@##"# ## ##????? | | ????????????????????????# $### < ## # #?????? | | ????????????????????????#<$## #?????? | | ????????????????????????###### # % # ##?????? | | ????????????????????????????# ## ###??????? | | ????????????????????????????# ### #???????? | | ????????????????????????????## %#???????? | | ?????????????????????????????# %% #??????? | | ?????????????????????????????# ### #?????? | | ?????????????????????????????# ###?### ??? | | ?????????????????????????????## ##??????# | | ??????????????????????????????####????????# | | ???????????????????????????????????????????# | | ????????????????????????????????????????????# ## | | ?????????????????????????????????????????????# ##? | | ??????????????????????????????????????????????##?? | | ?????????????????????????????????????????????????? | | ?????????????????????????????????????????????????? | | ?????????????????????????????????????????????????? | | ?????????????????????????????????????????????????? | | ?????????????????????????????????????????????????? | | ?????????????????????????????????????????????????? | | ?????????????????????????????????????????????????? | | ?????????????????????????????????????????????????? | | ?????????????????????????????????????????????????? | +----------------------------------------------------+ Best States ------------- Heat Dissipation 25 Energy Generation 15 Energy Capacity 200 Matter Stores 300 Matter Capacity 300 Sight Range 16 Terrain Scan Range 16 Terrain Scan Density 10 ECM Strength 1 Resistance: KI 20 Resistance: TH 20 Resistance: EX 20 Resistance: EM 20 Resistance: I 20 Resistance: S 20 Resistance: P 20 Evasion (%) 55 Offensive Hacking 10 Item Schematics ----------------- None Robot Schematics ------------------ None Fabricated ------------ Nothing Repaired ---------- Nothing Studied --------- None Alien Tech Used ----------------- None Achievements -------------- DATA ERROR: Steam Global Achievement% I Have A Map? Organ Harvest Strength In Numbers Challenges ------------ None Game ------ Seed MetaNavigationChaingun Manual? 0 Play Time 01:04:05 Cumulative 9.2 hours Start 2026.07.25 @ 09:21:36 End 2026.07.25 @ 10:28:13 Sessions 1 Manual Loads 0 Difficulty Adventurer Special Mode None Game No. 13 Rogue 11 Adventurer 2 Explorer 0 Win Type - Total 0 Types 0/0/0/0/0/0/0/0/0/0 Lore% 2 Gallery% 10 Achievement% 3 Wizard Run 0 Options --------- Layout 1 ASCII 0 Keyboard 0 Movement Mouse Keybinds 0 Fullscreen 1 Font 24/Smallcaps Map View 50x35 Zoom Use 4% Tactical HUD 1 Map Filters NONE Filters NONE Steam 1 RUN: 22d7fefc-09dc-4ef3-8f22-993204e030d5